[Event "*** Titled Tuesday 3|2 Blitz"]
[Site "Chess.com"]
[Date "2015.02.24"]
[Round "1"]
[White "petrpalachev"]
[Black "PauloCesarCosta"]
[Result "1-0"]
[WhiteElo "2393"]
[BlackElo "2038"]
[TimeControl "180+2"]
[EndTime "11:07:09 PST"]
[Termination "petrpalachev won on time"]

1. d4 {[%clk 0:03:00]} 1... d5 {[%clk 0:02:52.6]} 2. c4 {[%clk 0:03:00.1]} 2...
c6 {[%clk 0:02:52.2]} 3. Nf3 {[%clk 0:03:00.6]} 3... e6 {[%clk 0:02:51.7]} 4. e3
{[%clk 0:03:01.9]} 4... Nf6 {[%clk 0:02:50.2]} 5. Nc3 {[%clk 0:03:03.5]} 5...
Nbd7 {[%clk 0:02:45.5]} 6. Bd3 {[%clk 0:03:04.3]} 6... dxc4 {[%clk 0:02:45.8]}
7. Bxc4 {[%clk 0:03:06.2]} 7... b5 {[%clk 0:02:47.7]} 8. Bd3 {[%clk 0:03:07]}
8... Bb7 {[%clk 0:02:46.1]} 9. O-O {[%clk 0:03:05.5]} 9... a6 {[%clk 0:02:44.3]}
10. e4 {[%clk 0:03:02.5]} 10... Be7 {[%clk 0:02:38.4]} 11. e5 {[%clk 0:03:03.3]}
11... Nd5 {[%clk 0:02:38.4]} 12. Nxd5 {[%clk 0:03:04]} 12... cxd5 {[%clk
0:02:39.4]} 13. a4 {[%clk 0:03:05.6]} 13... b4 {[%clk 0:02:31.3]} 14. a5 {[%clk
0:03:02.4]} 14... O-O {[%clk 0:02:28.2]} 15. Bd2 {[%clk 0:03:03.5]} 15... Bc6
{[%clk 0:02:08.8]} 16. Qe2 {[%clk 0:03:02.8]} 16... Nb8 {[%clk 0:02:00.5]} 17.
b3 {[%clk 0:02:59.4]} 17... Qd7 {[%clk 0:01:52]} 18. Rfc1 {[%clk 0:02:57.3]}
18... Bb5 {[%clk 0:01:44.5]} 19. Bxb5 {[%clk 0:02:58.1]} 19... Qxb5 {[%clk
0:01:44.5]} 20. Qxb5 {[%clk 0:02:58.5]} 20... axb5 {[%clk 0:01:45.7]} 21. Rc7
{[%clk 0:02:58]} 21... Re8 {[%clk 0:01:39.6]} 22. Rb7 {[%clk 0:02:53.9]} 22...
Nc6 {[%clk 0:01:27.7]} 23. Rxb5 {[%clk 0:02:52.8]} 23... Reb8 {[%clk 0:01:28]}
24. Rxb8+ {[%clk 0:02:53.3]} 24... Nxb8 {[%clk 0:01:26.4]} 25. Rc1 {[%clk
0:02:51.1]} 25... Na6 {[%clk 0:01:07.4]} 26. Rc6 {[%clk 0:02:50.2]} 26... Kf8
{[%clk 0:00:56.3]} 27. Ne1 {[%clk 0:02:51.1]} 27... Ke8 {[%clk 0:00:52.3]} 28.
Nd3 {[%clk 0:02:48.3]} 28... Kd7 {[%clk 0:00:52.4]} 29. Rb6 {[%clk 0:02:39.6]}
29... Ra7 {[%clk 0:00:47.1]} 30. g3 {[%clk 0:02:16.6]} 30... h6 {[%clk
0:00:47.4]} 31. h4 {[%clk 0:02:17.2]} 31... h5 {[%clk 0:00:46.9]} 32. Kg2 {[%clk
0:02:18.2]} 32... g6 {[%clk 0:00:47.8]} 33. Kf3 {[%clk 0:02:19.4]} 33... Bd8
{[%clk 0:00:43.9]} 34. Rxa6 {[%clk 0:02:15.6]} 34... Rxa6 {[%clk 0:00:44.2]} 35.
Nc5+ {[%clk 0:02:17.1]} 35... Kc6 {[%clk 0:00:37.3]} 36. Nxa6 {[%clk 0:02:19]}
36... Kb5 {[%clk 0:00:38.8]} 37. Nc5 {[%clk 0:02:09.3]} 37... Bxa5 {[%clk
0:00:35.8]} 38. Bg5 {[%clk 0:02:10.8]} 38... Kc6 {[%clk 0:00:27.7]} 39. Be7
{[%clk 0:02:11.5]} 39... Kb5 {[%clk 0:00:22.5]} 40. Kf4 {[%clk 0:02:12.5]} 40...
Bc7 {[%clk 0:00:18.2]} 41. Kg5 {[%clk 0:02:13.1]} 41... Ba5 {[%clk 0:00:05.8]}
42. Kf6 {[%clk 0:02:14.2]} 1-0

[Event "*** Titled Tuesday 3|2 Blitz"]
[Site "Chess.com"]
[Date "2015.02.24"]
[Round "1"]
[White "VovAn1991"]
[Black "gumersindo"]
[Result "1/2-1/2"]
[WhiteElo "2453"]
[BlackElo "2111"]
[TimeControl "180+2"]
[EndTime "11:07:10 PST"]
[Termination "Game drawn by agreement"]

1. e4 {[%clk 0:02:54.7]} 1... e5 {[%clk 0:02:58.5]} 2. Nf3 {[%clk 0:02:54.8]}
2... Nc6 {[%clk 0:02:59.2]} 3. Bc4 {[%clk 0:02:55.7]} 3... Bc5 {[%clk
0:02:59.5]} 4. O-O {[%clk 0:02:53.7]} 4... Nf6 {[%clk 0:02:59.9]} 5. d3 {[%clk
0:02:54.5]} 5... h6 {[%clk 0:02:56.9]} 6. a3 {[%clk 0:02:52.8]} 6... d6 {[%clk
0:02:56]} 7. h3 {[%clk 0:02:53.6]} 7... O-O {[%clk 0:02:55.5]} 8. Nc3 {[%clk
0:02:54.1]} 8... Be6 {[%clk 0:02:52.4]} 9. Nd5 {[%clk 0:02:48.3]} 9... Nb8
{[%clk 0:02:40.3]} 10. b4 {[%clk 0:02:43.4]} 10... Bb6 {[%clk 0:02:39.4]} 11. a4
{[%clk 0:02:44.4]} 11... c6 {[%clk 0:02:37.8]} 12. Nxb6 {[%clk 0:02:38.2]} 12...
axb6 {[%clk 0:02:38.3]} 13. Bxe6 {[%clk 0:02:37.8]} 13... fxe6 {[%clk
0:02:38.9]} 14. Be3 {[%clk 0:02:39.7]} 14... Nbd7 {[%clk 0:02:37.5]} 15. Re1
{[%clk 0:02:36.5]} 15... Qe8 {[%clk 0:02:32.6]} 16. d4 {[%clk 0:02:25]} 16...
Nxe4 {[%clk 0:02:29.5]} 17. dxe5 {[%clk 0:02:24.2]} 17... d5 {[%clk 0:02:28.5]}
18. Bd4 {[%clk 0:02:04.5]} 18... c5 {[%clk 0:02:28]} 19. bxc5 {[%clk 0:02:04]}
19... bxc5 {[%clk 0:02:28.8]} 20. Bb2 {[%clk 0:02:03.7]} 20... Qg6 {[%clk
0:02:27.2]} 21. a5 {[%clk 0:01:53.2]} 21... Rxf3 {[%clk 0:02:20.8]} 22. Qxf3
{[%clk 0:01:49.8]} 22... Rf8 {[%clk 0:02:21.9]} 23. Qg4 {[%clk 0:01:50.9]} 23...
Qxg4 {[%clk 0:02:17.2]} 24. hxg4 {[%clk 0:01:52.8]} 24... Nxf2 {[%clk
0:02:18.4]} 25. a6 {[%clk 0:01:52.5]} 25... bxa6 {[%clk 0:02:12.9]} 26. Rxa6
{[%clk 0:01:54.4]} 26... Nxg4 {[%clk 0:02:13.7]} 27. Rxe6 {[%clk 0:01:54.7]}
27... d4 {[%clk 0:02:10.6]} 28. Re7 {[%clk 0:01:52.5]} 28... Nb6 {[%clk
0:02:10.5]} 29. Ba3 {[%clk 0:01:51.9]} 29... Nd5 {[%clk 0:02:01.5]} 30. Rd7
{[%clk 0:01:51.4]} 30... Nde3 {[%clk 0:02:00.3]} 31. Bxc5 {[%clk 0:01:51.8]}
31... Rf2 {[%clk 0:02:01.1]} 32. Rd8+ {[%clk 0:01:40.3]} 32... Kh7 {[%clk
0:02:01.4]} 33. Rxe3 {[%clk 0:01:35.3]} 33... dxe3 {[%clk 0:01:56.9]} 34. Bxe3
{[%clk 0:01:14.2]} 34... Rxc2 {[%clk 0:01:57.1]} 35. e6 {[%clk 0:01:08.5]} 35...
Re2 {[%clk 0:01:47.4]} 36. Bd2 {[%clk 0:01:08.4]} 36... Rxe6 {[%clk 0:01:46.2]}
37. Rd7 {[%clk 0:01:09]} 37... Ne5 {[%clk 0:01:35.5]} 38. Rb7 {[%clk 0:01:04.4]}
38... Rg6 {[%clk 0:01:31.2]} 39. Bc3 {[%clk 0:01:04.3]} 39... Ng4 {[%clk
0:01:29.2]} 40. g3 {[%clk 0:01:04.9]} 40... h5 {[%clk 0:01:29.6]} 41. Kg2 {[%clk
0:01:05.4]} 41... Ne3+ {[%clk 0:01:29.8]} 42. Kf3 {[%clk 0:01:04.8]} 42... Nf5
{[%clk 0:01:29.9]} 43. Be5 {[%clk 0:01:05.2]} 43... h4 {[%clk 0:01:20]} 44. gxh4
{[%clk 0:01:00.6]} 44... Nxh4+ {[%clk 0:01:20.1]} 1/2-1/2

[Event "*** Titled Tuesday 3|2 Blitz"]
[Site "Chess.com"]
[Date "2015.02.24"]
[Round "1"]
[White "Hikaru"]
[Black "LADIESGET2KNOWME"]
[Result "1-0"]
[WhiteElo "2851"]
[BlackElo "2302"]
[TimeControl "180+2"]
[EndTime "11:07:11 PST"]
[Termination "Hikaru won on time"]

1. e3 {[%clk 0:01:11.9]} 1... e5 {[%clk 0:02:55.5]} 2. b3 {[%clk 0:01:13.8]}
2... Nc6 {[%clk 0:02:49.9]} 3. Bb2 {[%clk 0:01:15.7]} 3... f5 {[%clk 0:02:48.1]}
4. Bb5 {[%clk 0:01:17.1]} 4... d6 {[%clk 0:02:48.4]} 5. d4 {[%clk 0:01:17.7]}
5... Bd7 {[%clk 0:02:44.7]} 6. Bxc6 {[%clk 0:01:17.1]} 6... Bxc6 {[%clk
0:02:46.2]} 7. Nf3 {[%clk 0:01:19]} 7... e4 {[%clk 0:02:45.2]} 8. Nfd2 {[%clk
0:01:19.6]} 8... Nf6 {[%clk 0:02:43.4]} 9. c4 {[%clk 0:01:20.5]} 9... d5 {[%clk
0:02:42.9]} 10. Nc3 {[%clk 0:01:22.4]} 10... Bb4 {[%clk 0:02:40.4]} 11. Qc1
{[%clk 0:01:23.4]} 11... O-O {[%clk 0:02:38.4]} 12. Ba3 {[%clk 0:01:24.8]} 12...
a5 {[%clk 0:02:31.5]} 13. Ne2 {[%clk 0:01:26]} 13... Qe7 {[%clk 0:02:19.6]} 14.
Bxb4 {[%clk 0:01:27.1]} 14... axb4 {[%clk 0:02:15]} 15. O-O {[%clk 0:01:29]}
15... Ra6 {[%clk 0:01:54.4]} 16. Qc2 {[%clk 0:01:29.8]} 16... Rfa8 {[%clk
0:01:54.7]} 17. Rfc1 {[%clk 0:01:31.3]} 17... g5 {[%clk 0:01:41.7]} 18. Nf1
{[%clk 0:01:28.7]} 18... Qe6 {[%clk 0:01:25.2]} 19. Qd2 {[%clk 0:01:29.4]} 19...
dxc4 {[%clk 0:01:11]} 20. bxc4 {[%clk 0:01:31.3]} 20... b3 {[%clk 0:01:07]} 21.
d5 {[%clk 0:01:32.4]} 21... Qe5 {[%clk 0:01:08.1]} 22. Nd4 {[%clk 0:01:33.6]}
22... Rxa2 {[%clk 0:01:05.7]} 23. Rxa2 {[%clk 0:01:34.8]} 23... bxa2 {[%clk
0:01:02.1]} 24. Ra1 {[%clk 0:01:35.4]} 24... Bd7 {[%clk 0:00:58.6]} 25. Rxa2
{[%clk 0:01:36]} 25... Rxa2 {[%clk 0:00:50.9]} 26. Qxa2 {[%clk 0:01:37.9]} 26...
b6 {[%clk 0:00:52.3]} 27. Qa8+ {[%clk 0:01:32.9]} 27... Kg7 {[%clk 0:00:51.2]}
28. Qd8 {[%clk 0:01:34.2]} 28... f4 {[%clk 0:00:42.5]} 29. h4 {[%clk 0:01:34.8]}
29... gxh4 {[%clk 0:00:38.6]} 30. Ne6+ {[%clk 0:01:33.6]} 30... Bxe6 {[%clk
0:00:38.6]} 31. dxe6 {[%clk 0:01:35.5]} 31... Qxe6 {[%clk 0:00:30.5]} 32. Qxc7+
{[%clk 0:01:35.3]} 32... Kg6 {[%clk 0:00:30.5]} 33. exf4 {[%clk 0:01:36.4]}
33... Ng4 {[%clk 0:00:16.2]} 34. Qd8 {[%clk 0:01:36.5]} 34... h6 {[%clk
0:00:15.2]} 35. Qxh4 {[%clk 0:01:36.8]} 35... Nf6 {[%clk 0:00:08.8]} 36. Ne3
{[%clk 0:01:37.4]} 36... Qd6 {[%clk 0:00:05.5]} 37. Qxh6+ {[%clk 0:01:38.3]} 1-0

[Event "*** Titled Tuesday 3|2 Blitz"]
[Site "Chess.com"]
[Date "2015.02.24"]
[Round "1"]
[White "rhungaski"]
[Black "gawk"]
[Result "1-0"]
[WhiteElo "2433"]
[BlackElo "2048"]
[TimeControl "180+2"]
[EndTime "11:07:19 PST"]
[Termination "rhungaski won by resignation"]

1. d4 {[%clk 0:02:52.4]} 1... Nf6 {[%clk 0:02:56.8]} 2. c4 {[%clk 0:02:50.7]}
2... e6 {[%clk 0:02:57.8]} 3. Nf3 {[%clk 0:02:51.8]} 3... Bb4+ {[%clk
0:02:57.7]} 4. Nc3 {[%clk 0:02:53.1]} 4... O-O {[%clk 0:02:58]} 5. Bg5 {[%clk
0:02:54.4]} 5... h6 {[%clk 0:02:52.9]} 6. Bh4 {[%clk 0:02:55.2]} 6... g5 {[%clk
0:02:50.8]} 7. Bg3 {[%clk 0:02:55.8]} 7... Ne4 {[%clk 0:02:52]} 8. Qc2 {[%clk
0:02:52.7]} 8... f5 {[%clk 0:02:51.6]} 9. h4 {[%clk 0:02:24.4]} 9... Nxg3 {[%clk
0:02:35.9]} 10. fxg3 {[%clk 0:02:26.3]} 10... d6 {[%clk 0:01:50.1]} 11. hxg5
{[%clk 0:02:25.2]} 11... hxg5 {[%clk 0:01:50]} 12. O-O-O {[%clk 0:02:25.1]}
12... g4 {[%clk 0:01:36.7]} 13. Nh4 {[%clk 0:02:19.8]} 13... Nc6 {[%clk
0:01:36.9]} 14. Kb1 {[%clk 0:02:12.1]} 14... Qg5 {[%clk 0:01:36]} 15. d5 {[%clk
0:02:06.5]} 15... Ne5 {[%clk 0:01:35.2]} 16. Nb5 {[%clk 0:02:04.3]} 16... Ba5
{[%clk 0:01:30.8]} 17. Nd4 {[%clk 0:02:03.9]} 17... exd5 {[%clk 0:01:24.9]} 18.
cxd5 {[%clk 0:02:05.8]} 18... Bb6 {[%clk 0:01:22.9]} 19. e4 {[%clk 0:02:03.4]}
19... Bxd4 {[%clk 0:01:19.5]} 20. Rxd4 {[%clk 0:02:05.3]} 20... f4 {[%clk
0:01:20.6]} 21. gxf4 {[%clk 0:01:58.2]} 21... Rxf4 {[%clk 0:00:58.1]} 22. Qxc7
{[%clk 0:01:52.8]} 22... Qf6 {[%clk 0:00:53.9]} 23. Rd1 {[%clk 0:01:38.1]} 23...
Bd7 {[%clk 0:00:35]} 24. Be2 {[%clk 0:01:03.6]} 24... Rf2 {[%clk 0:00:34.3]} 25.
Rdf1 {[%clk 0:00:57.1]} 25... Rc8 {[%clk 0:00:35.2]} 26. Qxb7 {[%clk 0:00:39]}
26... Rc2 {[%clk 0:00:31.6]} 27. Kxc2 {[%clk 0:00:34.6]} 1-0

[Event "*** Titled Tuesday 3|2 Blitz"]
[Site "Chess.com"]
[Date "2015.02.24"]
[Round "1"]
[White "juniortay"]
[Black "Zlatan56"]
[Result "0-1"]
[WhiteElo "2223"]
[BlackElo "2603"]
[TimeControl "180+2"]
[EndTime "11:07:21 PST"]
[Termination "Zlatan56 won by checkmate"]

1. e4 {[%clk 0:03:00]} 1... d5 {[%clk 0:02:57.4]} 2. exd5 {[%clk 0:03:00.1]}
2... Qxd5 {[%clk 0:02:58.2]} 3. Nf3 {[%clk 0:03:00.8]} 3... Bg4 {[%clk
0:02:57.8]} 4. Be2 {[%clk 0:03:00.8]} 4... Nc6 {[%clk 0:02:58.5]} 5. c4 {[%clk
0:03:01.9]} 5... Qf5 {[%clk 0:02:54.2]} 6. d4 {[%clk 0:02:55.8]} 6... O-O-O
{[%clk 0:02:54.1]} 7. O-O {[%clk 0:02:57.3]} 7... e6 {[%clk 0:02:42.9]} 8. Be3
{[%clk 0:02:54.9]} 8... Nf6 {[%clk 0:02:42.4]} 9. Nc3 {[%clk 0:02:56.2]} 9...
Bc5 {[%clk 0:02:36.6]} 10. Qb3 {[%clk 0:02:16.1]} 10... Bd6 {[%clk 0:02:23.3]}
11. c5 {[%clk 0:01:52.5]} 11... Bf4 {[%clk 0:02:20.7]} 12. Rae1 {[%clk
0:01:47.3]} 12... h5 {[%clk 0:02:12.2]} 13. Nb5 {[%clk 0:01:02.6]} 13... Nd5
{[%clk 0:02:06.3]} 14. Bd3 {[%clk 0:00:57.1]} 14... Qf6 {[%clk 0:02:04]} 15.
Bxf4 {[%clk 0:00:41.5]} 15... Bxf3 {[%clk 0:01:56.2]} 16. Be3 {[%clk 0:00:39.8]}
16... Bg4 {[%clk 0:01:50.3]} 17. Qa4 {[%clk 0:00:32.4]} 17... Kb8 {[%clk
0:01:48.2]} 18. b4 {[%clk 0:00:31]} 18... Bf5 {[%clk 0:01:43.5]} 19. Be2 {[%clk
0:00:29.7]} 19... g5 {[%clk 0:01:43.6]} 20. Nxa7 {[%clk 0:00:28.9]} 20... Nxa7
{[%clk 0:01:42.6]} 21. b5 {[%clk 0:00:30.8]} 21... Nc3 {[%clk 0:01:38.6]} 22.
Qa5 {[%clk 0:00:28.1]} 22... Nxe2+ {[%clk 0:01:32.7]} 23. Rxe2 {[%clk 0:00:30]}
23... Bd3 {[%clk 0:01:33.9]} 24. Rfe1 {[%clk 0:00:27.2]} 24... Bxe2 {[%clk
0:01:30.2]} 25. Rxe2 {[%clk 0:00:29.1]} 25... Qf5 {[%clk 0:01:30.7]} 26. Rb2
{[%clk 0:00:29]} 26... Nc8 {[%clk 0:01:21.4]} 27. c6 {[%clk 0:00:25.2]} 27...
Rd5 {[%clk 0:01:10.6]} 28. cxb7 {[%clk 0:00:19.1]} 28... Nb6 {[%clk 0:01:03.8]}
29. a4 {[%clk 0:00:14.2]} 29... Qd3 {[%clk 0:00:59.7]} 30. h3 {[%clk 0:00:12.5]}
30... g4 {[%clk 0:01:00.4]} 31. h4 {[%clk 0:00:12]} 31... g3 {[%clk 0:01:00.8]}
32. Qa6 {[%clk 0:00:11.8]} 32... Qd1# {[%clk 0:01:00.5]} 0-1

[Event "*** Titled Tuesday 3|2 Blitz"]
[Site "Chess.com"]
[Date "2015.02.24"]
[Round "1"]
[White "Tilicheev_Viacheslav"]
[Black "kesarev"]
[Result "1/2-1/2"]
[WhiteElo "2551"]
[BlackElo "2243"]
[TimeControl "180+2"]
[EndTime "11:07:22 PST"]
[Termination "Game drawn by repetition"]

1. e4 {[%clk 0:02:58.4]} 1... g6 {[%clk 0:02:59]} 2. d4 {[%clk 0:02:59.2]} 2...
Bg7 {[%clk 0:03:00.4]} 3. Nc3 {[%clk 0:03:00.2]} 3... c5 {[%clk 0:03:01.5]} 4.
Nf3 {[%clk 0:02:59.6]} 4... cxd4 {[%clk 0:03:02]} 5. Nxd4 {[%clk 0:03:01.5]}
5... Nc6 {[%clk 0:03:03.6]} 6. Be3 {[%clk 0:03:02.7]} 6... Nf6 {[%clk
0:03:03.8]} 7. Bc4 {[%clk 0:03:03.9]} 7... d6 {[%clk 0:03:04.6]} 8. Bb3 {[%clk
0:03:04.7]} 8... Bd7 {[%clk 0:03:04.9]} 9. f3 {[%clk 0:03:05.6]} 9... Rc8 {[%clk
0:03:05.2]} 10. Qd2 {[%clk 0:03:06.4]} 10... Ne5 {[%clk 0:03:06.1]} 11. O-O-O
{[%clk 0:02:56.7]} 11... Nc4 {[%clk 0:03:06]} 12. Bxc4 {[%clk 0:02:57.8]} 12...
Rxc4 {[%clk 0:03:06.4]} 13. h4 {[%clk 0:02:59.4]} 13... h5 {[%clk 0:03:03.7]}
14. Kb1 {[%clk 0:02:59.8]} 14... a6 {[%clk 0:02:59.3]} 15. Rhe1 {[%clk
0:02:56.2]} 15... b5 {[%clk 0:02:40.7]} 16. Bg5 {[%clk 0:02:54]} 16... O-O
{[%clk 0:02:33.8]} 17. Nb3 {[%clk 0:02:44.6]} 17... b4 {[%clk 0:02:17.8]} 18.
Nd5 {[%clk 0:02:44.8]} 18... Nxd5 {[%clk 0:01:50.7]} 19. exd5 {[%clk 0:02:46.7]}
19... Re8 {[%clk 0:01:51.8]} 20. Qe2 {[%clk 0:02:43.6]} 20... Bb5 {[%clk
0:01:52.2]} 21. Qe3 {[%clk 0:02:37.1]} 21... Qd7 {[%clk 0:01:50]} 22. Nd4 {[%clk
0:02:16]} 22... Rc5 {[%clk 0:01:36.9]} 23. Qe4 {[%clk 0:01:49.6]} 23... Bc4
{[%clk 0:01:26.2]} 24. Ne6 {[%clk 0:01:37.9]} 24... fxe6 {[%clk 0:01:06.9]} 25.
Qxg6 {[%clk 0:01:22.9]} 25... Qa4 {[%clk 0:00:24.6]} 26. b3 {[%clk 0:01:12.6]}
26... Qxa2+ {[%clk 0:00:23.3]} 27. Kc1 {[%clk 0:01:01.6]} 27... Qb2+ {[%clk
0:00:21.3]} 28. Kd2 {[%clk 0:01:01.6]} 28... Qc3+ {[%clk 0:00:21.9]} 29. Kc1
{[%clk 0:01:03]} 29... Qb2+ {[%clk 0:00:17.4]} 30. Kd2 {[%clk 0:01:04.2]} 30...
Qc3+ {[%clk 0:00:16.8]} 31. Kc1 {[%clk 0:01:05.2]} 31... Qb2+ {[%clk 0:00:14.2]}
32. Kd2 {[%clk 0:01:06.2]} 1/2-1/2

[Event "*** Titled Tuesday 3|2 Blitz"]
[Site "Chess.com"]
[Date "2015.02.24"]
[Round "1"]
[White "LyonBeast"]
[Black "iFrancisco"]
[Result "1-0"]
[WhiteElo "2754"]
[BlackElo "2296"]
[TimeControl "180+2"]
[EndTime "11:07:32 PST"]
[Termination "LyonBeast won by resignation"]

1. e4 {[%clk 0:02:55.3]} 1... e5 {[%clk 0:02:54.5]} 2. Nf3 {[%clk 0:02:54.9]}
2... Nc6 {[%clk 0:02:55]} 3. Bb5 {[%clk 0:02:53.3]} 3... a6 {[%clk 0:02:56.3]}
4. Ba4 {[%clk 0:02:54]} 4... Nf6 {[%clk 0:02:57.6]} 5. O-O {[%clk 0:02:52.9]}
5... Nxe4 {[%clk 0:02:58.7]} 6. d4 {[%clk 0:02:53.4]} 6... b5 {[%clk 0:02:59.6]}
7. Bb3 {[%clk 0:02:54.7]} 7... d5 {[%clk 0:03:01.3]} 8. dxe5 {[%clk 0:02:55.8]}
8... Be6 {[%clk 0:03:02.9]} 9. Be3 {[%clk 0:02:52.3]} 9... Bc5 {[%clk
0:03:02.7]} 10. Qe2 {[%clk 0:02:52]} 10... O-O {[%clk 0:03:01.2]} 11. Rd1 {[%clk
0:02:52.6]} 11... Re8 {[%clk 0:02:58.4]} 12. Nbd2 {[%clk 0:02:36.6]} 12... Nxd2
{[%clk 0:02:48.9]} 13. Rxd2 {[%clk 0:02:34.7]} 13... Bxe3 {[%clk 0:02:00.7]} 14.
Qxe3 {[%clk 0:02:36.6]} 14... Ne7 {[%clk 0:01:39.6]} 15. Qc5 {[%clk 0:02:29]}
15... Qd7 {[%clk 0:01:35.6]} 16. Nd4 {[%clk 0:02:26.2]} 16... Ng6 {[%clk
0:01:17]} 17. Re1 {[%clk 0:02:23.3]} 17... Ne7 {[%clk 0:01:00.8]} 18. c3 {[%clk
0:02:21.6]} 18... h6 {[%clk 0:01:00.4]} 19. Bc2 {[%clk 0:02:22.1]} 19... Rad8
{[%clk 0:00:58.8]} 20. b4 {[%clk 0:02:09.7]} 20... Rc8 {[%clk 0:00:59.3]} 21. h3
{[%clk 0:02:09]} 21... c6 {[%clk 0:01:00.4]} 22. Kh2 {[%clk 0:02:09.1]} 22...
Nf5 {[%clk 0:01:01.4]} 23. f4 {[%clk 0:02:03.9]} 23... Nxd4 {[%clk 0:01:00.5]}
24. cxd4 {[%clk 0:02:05.8]} 24... Bf5 {[%clk 0:01:00.8]} 25. g4 {[%clk
0:01:56.4]} 25... Bxc2 {[%clk 0:01:00.4]} 26. Rxc2 {[%clk 0:01:57.7]} 26... h5
{[%clk 0:01:02.3]} 27. Kg3 {[%clk 0:01:52.5]} 27... f5 {[%clk 0:00:50.5]} 28.
gxh5 {[%clk 0:01:40.5]} 28... Qf7 {[%clk 0:00:47.2]} 29. Kh4 {[%clk 0:01:30]}
29... Re6 {[%clk 0:00:46.4]} 30. Rg2 {[%clk 0:01:30.7]} 30... Kh8 {[%clk
0:00:33.5]} 31. Rg5 {[%clk 0:01:28.2]} 31... Rg8 {[%clk 0:00:34.3]} 32. Reg1
{[%clk 0:01:27.8]} 32... Rh6 {[%clk 0:00:35.2]} 33. Qc2 {[%clk 0:01:26]} 33...
g6 {[%clk 0:00:34.8]} 34. Qxc6 {[%clk 0:01:23.4]} 34... Qh7 {[%clk 0:00:30.4]}
35. Qf6+ {[%clk 0:01:22.9]} 35... Rg7 {[%clk 0:00:31.8]} 36. Kg3 {[%clk
0:01:14.5]} 36... Rxh5 {[%clk 0:00:32.1]} 37. Rxh5 {[%clk 0:01:12.7]} 37... Qxh5
{[%clk 0:00:32.9]} 38. Qh4 {[%clk 0:01:08.8]} 38... Qxh4+ {[%clk 0:00:31.3]} 39.
Kxh4 {[%clk 0:01:10.7]} 39... Rc7 {[%clk 0:00:33]} 40. Rxg6 {[%clk 0:01:10.3]}
1-0

[Event "*** Titled Tuesday 3|2 Blitz"]
[Site "Chess.com"]
[Date "2015.02.24"]
[Round "1"]
[White "IMRosen"]
[Black "Danirod"]
[Result "1-0"]
[WhiteElo "2025"]
[BlackElo "2368"]
[TimeControl "180+2"]
[EndTime "11:08:12 PST"]
[Termination "IMRosen won by checkmate"]

1. c4 {[%clk 0:02:59.4]} 1... c5 {[%clk 0:02:58.5]} 2. Nf3 {[%clk 0:02:59.9]}
2... Nc6 {[%clk 0:02:56.9]} 3. Nc3 {[%clk 0:03:01]} 3... Nf6 {[%clk 0:02:56.7]}
4. e3 {[%clk 0:03:02.6]} 4... e6 {[%clk 0:02:57.4]} 5. d4 {[%clk 0:03:03.3]}
5... d5 {[%clk 0:02:58.1]} 6. cxd5 {[%clk 0:03:04]} 6... Nxd5 {[%clk 0:02:58.8]}
7. Bb5 {[%clk 0:03:02.9]} 7... Nxc3 {[%clk 0:02:57.2]} 8. bxc3 {[%clk
0:03:03.5]} 8... Bd7 {[%clk 0:02:57.9]} 9. O-O {[%clk 0:03:03.7]} 9... Be7
{[%clk 0:02:59.2]} 10. Bb2 {[%clk 0:03:01.5]} 10... a6 {[%clk 0:02:59.9]} 11.
Bd3 {[%clk 0:03:00.6]} 11... b5 {[%clk 0:02:58]} 12. e4 {[%clk 0:03:00.7]} 12...
c4 {[%clk 0:02:49]} 13. Bc2 {[%clk 0:03:00.6]} 13... O-O {[%clk 0:02:36.7]} 14.
Qe2 {[%clk 0:03:01.7]} 14... Qc7 {[%clk 0:02:29]} 15. Rad1 {[%clk 0:03:01.7]}
15... e5 {[%clk 0:02:18.3]} 16. dxe5 {[%clk 0:02:51.2]} 16... Bg4 {[%clk
0:02:18.6]} 17. h3 {[%clk 0:02:43.1]} 17... Bh5 {[%clk 0:02:19.7]} 18. g4 {[%clk
0:02:37.9]} 18... Bg6 {[%clk 0:02:21]} 19. Rd5 {[%clk 0:02:39.5]} 19... Rfe8
{[%clk 0:02:15]} 20. Bc1 {[%clk 0:02:39.9]} 20... h5 {[%clk 0:02:10.4]} 21. Bf4
{[%clk 0:02:39]} 21... hxg4 {[%clk 0:02:09.9]} 22. hxg4 {[%clk 0:02:40.7]} 22...
Qc8 {[%clk 0:02:06]} 23. Nd4 {[%clk 0:02:35.3]} 23... Bf8 {[%clk 0:01:46.1]} 24.
Kg2 {[%clk 0:02:32.1]} 24... a5 {[%clk 0:01:29.7]} 25. Nf5 {[%clk 0:02:29.7]}
25... Ne7 {[%clk 0:01:19.3]} 26. Rxb5 {[%clk 0:02:22.5]} 26... Qc6 {[%clk
0:01:20.7]} 27. Nxe7+ {[%clk 0:02:06.9]} 27... Bxe7 {[%clk 0:01:21.9]} 28. Rd5
{[%clk 0:02:08.6]} 28... Ba3 {[%clk 0:01:14.5]} 29. Rh1 {[%clk 0:02:01.7]} 29...
Rab8 {[%clk 0:01:04.4]} 30. Qf3 {[%clk 0:01:37.7]} 30... Rb2 {[%clk 0:01:04.8]}
31. Qh3 {[%clk 0:01:28.1]} 31... f6 {[%clk 0:00:58.2]} 32. Ba4 {[%clk
0:00:33.2]} 32... Bxe4+ {[%clk 0:00:57.3]} 33. Kg3 {[%clk 0:00:32.1]} 33... Qxa4
{[%clk 0:00:34.7]} 34. exf6 {[%clk 0:00:29.4]} 34... Kf7 {[%clk 0:00:23.1]} 35.
fxg7 {[%clk 0:00:20.5]} 35... Bxh1 {[%clk 0:00:24.1]} 36. Qh5+ {[%clk
0:00:21.1]} 36... Ke6 {[%clk 0:00:21.3]} 37. Qf5+ {[%clk 0:00:19.4]} 37... Ke7
{[%clk 0:00:22.8]} 38. Bg5# {[%clk 0:00:20.9]} 1-0